Cogmind - Beta 16 @@@ ROGUE MODE // 2025.11.15 @ 13:38:37 Player: El Diablo Result: Destroyed by Y-45 Defender with Heavy Assault Rifle Performance ------------- Evolutions (1) 500 Regions Visited (3) 600 Robots Destroyed (26) 130 Value Destroyed (494) 494 Prototype IDs (0) 0 Alien Tech Used (0) 0 Bonus (0) 0 TOTAL SCORE: 1724 Bonus ------- None Cogmind --------- Core Integrity 0/400 Matter 275/300 Energy 100/100 System Corruption 0% Temperature Cool (9) Movement Core (1350) Ox26 Location -9/Materials Parts ------- > --- POWER (1) -------- (None) > --- PROPULSION (2) --- (None) > --- UTILITY (3) ------ Huge Storage Unit > --- WEAPON (3) ------- (None) > --- INVENTORY (25) --- Flight Unit Small Storage Unit Structural Scanner Seismic Detector Tractor Beam Peak State ------------ > --- POWER ------------ Ion Engine > --- PROPULSION ------- Light Treads Light Treads > --- UTILITY ---------- Small Storage Unit Improved Terrain Scanner > --- WEAPON ----------- Assault Rifle Light Assault Rifle > --- INVENTORY -------- Light Ion Engine Light Ion Engine Light Ion Engine Improved Terrain Scanner Seismic Detector Tractor Beam EM Pulse Gun Mining Laser [Rating: 10] Favorites ----------- Power Light Ion Engine Engine Light Ion Engine Propulsion Aluminum Leg Treads Light Treads Leg Aluminum Leg Hover Unit Backup Propulsion I Flight Unit Flight Unit Utility Huge Storage Unit Device Improved Terrain Scanner Storage Huge Storage Unit Protection Propulsion Shielding Weapon EM Pulse Gun Energy Gun EM Pulse Gun Ballistic Gun Assault Rifle Launcher Grenade Launcher Special Weapon Welding Torch Build | -11 -10 -10 -9 ------- Run | Yrd Mat Min Mat Slots Evolved 2 | . . . 2 Power . | . . . . Propulsion . | . . . . Utility 1 | . . . 1 Weapon 1 | . . . 1 Parts Attached 21 | 8 9 1 3 Power 4 | 1 2 . 1 Engine 4 | 1 2 . 1 Core . | . . . . Reactor . | . . . . Propulsion 6 | 2 3 . 1 Treads 2 | 2 . . . Leg 2 | . 2 . . Wheel . | . . . . Hover 1 | . 1 . . Flight 1 | . . . 1 Utility 5 | 2 2 . 1 Device 2 | 1 . . 1 Storage 2 | 1 1 . . Processor . | . . . . Hackware . | . . . . Protection 1 | . 1 . . Artifact . | . . . . Weapon 6 | 3 2 1 . Energy Gun 1 | . 1 . . Energy Cannon . | . . . . Ballistic Gun 2 | 2 . . . Ballistic Cannon . | . . . . Launcher 1 | . 1 . . Special Weapon 2 | 1 . 1 . Impact Weapon . | . . . . Slashing Weapon . | . . . . Piercing Weapon . | . . . . Special Melee Weapon . | . . . . Unidentified Prototypes . | . . . . Parts Lost 15 | . 6 . 9 Power 4 | . 2 . 2 Propulsion 3 | . . . 3 Utility 3 | . 1 . 2 Weapon 5 | . 3 . 2 Highest Loss Streak 5 | . 3 . 5 To Critical Strikes . | . . . . Average Backups 7 | 4 8 7 6 Power 1 | 2 1 1 . Propulsion 1 | . 1 1 1 Utility 4 | 1 4 5 4 Weapon . | 1 . . . Tool/Special . | . . . . Unused Backups 4 | . 1 . 3 Power 1 | . 1 . . Propulsion . | . . . . Utility 3 | . . . 3 Weapon . | . . . . Tool/Special . | . . . . Average Slot Usage (%) 90 | . 81 100 80 Engine 12 | . 13 14 9 Treads 3 | . 23 . . Leg 19 | . 3 28 12 Flight 3 | . . . 8 Device 4 | . 4 . 10 Storage 12 | . 14 14 11 Protection 11 | . 2 14 10 Energy Gun 10 | . 2 14 9 Launcher 1 | . 8 . . Special Weapon 10 | . 2 14 9 Peak Build Rating 10 | 10 10 8 10 Average Rating 7 | 7 7 7 9 On Entrance 6 | . 9 7 8 Avg Prop Armor Cover (%) 9 | . 11 . 9 Naked Turns . | . . . . Heaviest Build 88 | 14 86 87 88 Greatest Support 40 | 40 40 20 20 Greatest Overweight (x) 26 | 1 14 4 26 Average Overweight (x) 4 | . 1 4 13 Largest Inventory Capacity 25 | 8 25 25 25 Average Capacity 22 | 7 18 25 25 Most Carried 11 | 8 11 8 7 Average Carried 7 | 4 8 7 6 Final Capacity 25 | 8 25 25 25 Final Carried 8 | 7 8 8 5 Class Distribution -------------------- 76% | Scavenger-Mutant 23% | Mutant Dominant Class ---------------- Mutant | -10/Materials Scavenger-Mutant | -10/Mines Scavenger-Mutant | -9/Materials Resources | -11 -10 -10 -9 ----------- Run | Yrd Mat Min Mat Matter Collected 588 | 300 106 182 . Remotely . | . . . . Salvage Created 640 | 196 368 48 28 Parts 46 | 20 22 2 2 Haulers Intercepted . | . . . . Recyclers Shooed 1 | . 1 . . Parts Field Recycled . | . . . . Retrieved Matter . | . . . . Parts Self-Destructed . | . . . . Prevented . | . . . . Parts Restored . | . . . . Kills | -11 -10 -10 -9 ------- Run | Yrd Mat Min Mat Combat Hostiles Destroyed 12 | . 9 3 . Guns 5 | . 2 3 . AOE 7 | . 7 . . Classes Destroyed 8 | 3 3 1 1 Worker 2 | 2 . . . Builder 5 | . 5 . . Tunneler 3 | 3 . . . Recycler 2 | 1 1 . . Operator 1 | . 1 . . Watcher 1 | . . . 1 Swarmer 3 | . . 3 . Grunt 9 | . 9 . . Best Kill Streak 5 | 2 5 3 1 Combat Bots Only 4 | . 4 3 . Max Kills in Single Turn 3 | 1 3 1 1 Gunslinging . | . . . . Exploded 3 | . 3 . . Melee . | . . . . Uniques/NPCs Destroyed . | . . . . Combat | -11 -10 -10 -9 -------- Run | Yrd Mat Min Mat Hostile Shots Fired 169 | . 58 12 99 Missed 43 | . 12 3 28 Hits 126 | . 46 9 71 Projectile 126 | . 46 9 71 Critical Strikes 1 | . 1 . . Damage Taken 1706 | . 746 73 887 Core 549 | . 128 16 405 Absorbed by Shields . | . . . . Redirected to Shielding 52 | . 3 4 45 Core Remaining (%) 71 | 100 . 42 . Volleys Fired 63 | 28 22 5 8 Largest 2 | 2 2 1 1 Hottest 100 | 100 50 40 40 Shots Fired 93 | 54 26 5 8 Gun 78 | 52 13 5 8 Cannon . | . . . . Launcher 13 | . 13 . . Special 2 | 2 . . . Kinetic 60 | 52 8 . . Thermal 2 | 2 . . . Explosive 13 | . 13 . . Electromagnetic 18 | . 5 5 8 Robot Hit Streak 8 | 8 7 2 4 Robot Miss Streak 3 | 3 2 2 3 Penetration Max . | . . . . Secondary Targets . | . . . . Shots Hit Robots 50 | 30 13 3 4 Core Hits 41 | 11 25 3 2 Critical Kills . | . . . . Critical Parts Destroyed . | . . . . Critical Strikes . | . . . . Melee Attacks . | . . . . Impact . | . . . . Slashing . | . . . . Piercing . | . . . . Sneak Attacks . | . . . . Combat Hostiles . | . . . . Follow-up Attacks . | . . . . Damage Inflicted 1387 | 258 1035 32 62 Guns 473 | 258 121 32 62 Cannons . | . . . . Explosions 914 | . 914 . . Melee . | . . . . Ramming . | . . . . Kinetic 337 | 258 79 . . Thermal . | . . . . Explosive 914 | . 914 . . Electromagnetic 136 | . 42 32 62 Impact . | . . . . Slashing . | . . . . Piercing . | . . . . Highest Corruption . | . . . . Average Corruption . | . . . . Corruption Purged . | . . . . Corruption Blocked . | . . . . Overload Shots . | . . . . Overflow Damage 82 | . 82 . . Projectiles . | . . . . Explosions 82 | . 82 . . Melee . | . . . . Knockbacks . | . . . . Impact . | . . . . Kinetic . | . . . . Secondary . | . . . . Self-Inflicted Damage 212 | . 212 . . Shots 7 | . 7 . . Rammed . | . . . . Targets Rammed . | . . . . Kicked . | . . . . Crushed . | . . . . Highest Temperature 32 | 20 32 . 10 Average Temperature 10 | 10 12 . 6 Received Heat Transfer 705 | . 318 . 387 Siege Activations . | . . . . Martial Activations . | . . . . Shielding Activations . | . . . . Robots Disrupted . | . . . . Combat Hostiles . | . . . . Robots Corrupted . | . . . . Combat Hostiles . | . . . . Parts Fried . | . . . . Impact Corruptions . | . . . . Robots Melted . | . . . . Combat Hostiles . | . . . . Parts Melted . | . . . . Heat Transferred . | . . . . Parts Sabotaged . | . . . . Parts Stolen . | . . . . Parts Stripped . | . . . . Power Chain Reactions . | . . . . Alert | -11 -10 -10 -9 ------- Run | Yrd Mat Min Mat Maximum Alert Level 1 | . 1 . . Low Security (%) 98 | 100 85 100 100 Level 1 1 | . 14 . . Level 2 . | . . . . Level 3 . | . . . . Level 4 . | . . . . Level 5 . | . . . . High Security . | . . . . Max Security . | . . . . Peak Influence 212 | 10 212 70 7 Initial 67 | . . 67 . Average 20 | 1 138 8 . Influence Increases 509 | 30 402 70 7 Destroy 0b10 Robot/C 240 | . 180 60 . Destroy 0b10 Robot/NC 70 | 30 35 . 5 Destroy Leader 52 | . 40 10 2 Disable Machine 60 | . 60 . . Destroy Structure 72 | . 72 . . Lose Combat Pursuer 15 | . 15 . . Influence Decreases 509 | 30 227 245 7 Entered New Map 108 | . . 108 . Time Decay 345 | 30 171 137 7 Lost Part 56 | . 56 . . Squads Dispatched 3 | . 2 . 1 Investigation 1 | . 1 . . Extermination . | . . . . Reinforcement 2 | . 1 . 1 Assault . | . . . . Garrison . | . . . . Intercept . | . . . . Searches Triggered . | . . . . Construction Impeded . | . . . . Haulers Reinforced . | . . . . Active Scanning Responses . | . . . . Cargo Convoy Interrupts . | . . . . Stealth | -11 -10 -10 -9 --------- Run | Yrd Mat Min Mat Distress Signals 2 | . . . 2 Communications Jammed . | . . . . Distress Signals . | . . . . Times Spotted 21 | . 12 3 6 Peak Tracking Total 5 | . 5 3 2 Tactical Retreats 1 | . 1 . . Traps | -11 -10 -10 -9 ------- Run | Yrd Mat Min Mat Traps Triggered 1 | . 1 . . Indirectly . | . . . . Trap Hack Attempts . | . . . . Triggered . | . . . . Disarmed . | . . . . Reprogrammed . | . . . . Reused . | . . . . Traps Extracted . | . . . . Installed . | . . . . Triggered . | . . . . Machines | -11 -10 -10 -9 ---------- Run | Yrd Mat Min Mat Machines Disabled 4 | . 4 . . Max in Single Turn 1 | . 1 . . Machines Repaired . | . . . . Machines Dismantled . | . . . . Machines Sabotaged . | . . . . Overloaded Fab Kills . | . . . . Hacking | -11 -10 -10 -9 --------- Run | Yrd Mat Min Mat Machines Accessed 2 | . 1 . 1 Terminals 2 | . 1 . 1 Fabricators . | . . . . Repair Stations . | . . . . Recycling Units . | . . . . Scanalyzers . | . . . . Garrison Access . | . . . . Total Hacks 5 | . 2 . 3 Successful 3 | . 1 . 2 Failed 2 | . 1 . 1 Catastrophic 1 | . 1 . . Database Lockouts . | . . . . Manual . | . . . . Terminals 5 | . 2 . 3 Fabricators . | . . . . Repair Stations . | . . . . Recycling Units . | . . . . Scanalyzers . | . . . . Garrison Access . | . . . . Terminal Hacks 3 | . 1 . 2 Record 2 | . . . 2 Alert Level 1 | . 1 . . Fabricator Hacks . | . . . . Repair Station Hacks . | . . . . Recycling Unit Hacks . | . . . . Scanalyzer . | . . . . Garrison Access Hacks . | . . . . Unauthorized Hacks . | . . . . Terminals . | . . . . Fabricators . | . . . . Repair Stations . | . . . . Recycling Units . | . . . . Scanalyzers . | . . . . Garrison Access . | . . . . Data Cores Recovered . | . . . . Used . | . . . . Hacking Detections . | . . . . Full Trace Events . | . . . . Feedback Events . | . . . . Feedback Blocked . | . . . . Robot Schematics Acquired . | . . . . Robots Built . | . . . . Authchips . | . . . . Time . | . . . . Total Robot Build Rating . | . . . . Part Schematics Acquired . | . . . . Parts Built . | . . . . Authchips . | . . . . Time . | . . . . Total Part Build Rating . | . . . . Part Studies Acquired . | . . . . Parts Repaired . | . . . . Time . | . . . . Parts Recycled . | . . . . Recycled Matter . | . . . . Retrieved Matter . | . . . . Retrieved Components . | . . . . Parts Scanalyzed . | . . . . Part Schematics Acquired . | . . . . Parts Damaged . | . . . . Bothacking | -11 -10 -10 -9 ------------ Run | Yrd Mat Min Mat Used RIF Installer . | . . . . Robots Hacked . | . . . . Non-combat . | . . . . Combat . | . . . . Robot Hacks Applied . | . . . . Relay Couplers Released . | . . . . Fabnet Peak Effective % . | . . . . Robots Rewired . | . . . . Allies Hacked . | . . . . Hacks Repelled . | . . . . Allies | -11 -10 -10 -9 -------- Run | Yrd Mat Min Mat Total Allies . | . . . . Largest Group . | . . . . Highest-Rated Group . | . . . . Highest-Rated Ally . | . . . . Total Orders . | . . . . Ally Attacks . | . . . . Total Damage . | . . . . Kills . | . . . . Allies Corrupted . | . . . . Allies Melted . | . . . . Intel | -11 -10 -10 -9 ------- Run | Yrd Mat Min Mat Active Infowar (turns) 1413 | 214 135 . 1064 Terrain 1413 | 214 135 . 1064 Robot Analysis Total . | . . . . Derelict Logs Recovered 2 | . . 2 . Drone Launches . | . . . . Drone Recoveries . | . . . . Exploration | -11 -10 -10 -9 ------------- Run | Yrd Mat Min Mat Turns Passed 3575 | 298 422 1685 1170 Spaces Moved 794 | 130 146 419 99 Core 14 | 12 . . 2 Treads 251 | 118 133 . . Legs 471 | . 11 419 41 Wheels . | . . . . Hover 4 | . 2 . 2 Flight 54 | . . . 54 Fastest Speed 50 | 50 160 400 330 Average Speed 425 | 150 245 400 1162 Slowest Speed 1730 | 160 1210 400 1730 Overloaded Moves . | . . . . Propulsion Burnouts . | . . . . Robots Hopped . | . . . . Potential Cave-ins 3 | . 3 . . Cave-ins Triggered . | . . . . Exploration Rate (%) 30 | 8 28 73 14 Regions Visited 3 Branch Regions 1 Pre-discovered Areas 2 | . . 2 . Known Exits Taken . | . . . . Unknown Exits Taken 3 | 1 1 1 . Scrap Searched . | . . . . Spaces Dug 9 | 2 7 . . Terrain Destroyed 97 | 2 95 . . Melee . | . . . . Projectile 2 | 2 . . . AOE 95 | . 95 . . Terrain Rammed . | . . . . Walls Destroyed . | . . . . Machines Disabled . | . . . . Actions | -11 -10 -10 -9 --------- Run | Yrd Mat Min Mat Total 906 | 180 188 426 112 Wait 1 | . . 1 . Move 791 | 129 145 418 99 Hop . | . . . . Pick Up 23 | 14 8 1 . Fast Attach 2 | 1 1 . . Attach 18 | 7 7 1 3 Detach 1 | . 1 . . Swap 3 | . 1 . 2 Drop 4 | 1 3 . . Fire 63 | 28 22 5 8 Melee . | . . . . Ram . | . . . . Kick . | . . . . Crush . | . . . . Escape Stasis . | . . . . Rewire . | . . . . Trap . | . . . . Miscellaneous . | . . . . Route ------- -11/Scrapyard -10/Materials -10/Mines -9/Materials History --------- Turn | Location | Event 5 | -11/Scrapyard | Discovered new exit (range 15) 299 | -11/Scrapyard | Entered Materials 300 | -10/Materials | Build established: Mutant 425 | -10/Materials | Lost 3 parts (1p2w) 635 | -10/Materials | Core integrity fell below 50% 685 | -10/Materials | Discovered new exit (range 9) 721 | -10/Materials | Entered Mines 758 | -10/Mines | Learned Materials terminal intel 855 | -10/Mines | Met a Derelict bent on vengeance 1027 | -10/Mines | Build established: Scavenger-Mutant 1151 | -10/Mines | Learned location of Recycling (-8) 1259 | -10/Mines | Discovered new exit (range 9) 1260 | -10/Mines | Learned location of Storage (-8) 2406 | -10/Mines | Entered Materials 2406 | -9/Materials | Evolved 2 slots: Utility x1, Weapon x1 2407 | -9/Materials | Loaded intel: 12 terminal locations 3421 | -9/Materials | Lost 3 parts (1p2w) 3527 | -9/Materials | Core integrity fell below 50% 3560 | -9/Materials | Lost 5 parts (1p2n2u) 3562 | -9/Materials | Core integrity fell below 20% 3576 | -9/Materials | Destroyed by Y-45 Defender with Heavy Assault Rifle Last Messages --------------- ALERT: Hostiles spotted, dispatching reinforcements to Terminal M002. W-16 Scout destroyed. K-01 Serf collects debris. K-01 Serf cleans the Material Compactor. Welding Torch destroyed. EM Pulse Gun destroyed. G-34 Mercenary misfires. M-13 Machinist repairs G-34 Mercenary. Lgt. Ion Engine destroyed. G-34 Mercenary misfires. Imp. Terrain Scanner destroyed. Lgt. Ion Engine destroyed. G-34 Mercenary misfires. Propulsion Shielding destroyed. Aluminum Leg destroyed. G-34 Mercenary destroyed. K-01 Serf collects debris. Aluminum Leg destroyed. Backup Propulsion I destroyed. Map ----- +----------------------------------------------------+ | ?????????????????????????????????????????????????? | | ?????????????????????????????????????????????????? | | ?????????????????????????????????????????????????? | | ?????????????????????????????????????????????????? | | ?????????????????????????????????????????????????? | | ?????????????????????????????????????????????????? | | ?????????????????????????????????????????????????? | | ?????????????????????????????????????????????????? | | ?????????????????????????????????????????????????? | | ?????????????????????????????????????????????????? | | ?????????????????# ????????????????????????????? | | ?????????????????# ????????????????????????????? | | ?????????????????# ????????????????????????????? | | ?????????????????# ^^#???????????????????????????? | | ?????????????????# #???????????????????????????? | | ?????????????????# #???????????????????????????? | | ?????????????????# #???????????????????????????? | | ?????????????????# #??????????#????????????????? | | ?????????????????# #?????????%#????????????????? | | ?????????????????# #???????? +????????????????? | | ?????????????????# #??????? #????????????????? | | ????????????????## k##????? #????????????????? | | ????????????????# ###### %#????????????????? | | ????????######### k #????????????????? | | ?????? % % %#????????????????? | | ??#???#??#???#### Y @ %#????????????????? | | ??????????????#?# #######k #????????????????? | | ???????#??#????####+#####????????????????????????? | | ???? ??????????# #????????????????????????? | | ??? ?????????# """ #??????????"T"???????????? | | ? #????#???????# """ #??????????"""???????????? | | ??# ?#????????# [ """ #?#??????????????????????? | | #?? ?#??????#=%= #????????????????????????? | | ######### """ #????????????????????????? | | / """ #????????????????????????? | | ## ###### """ #????????????????????????? | | ##??? ??# #??#?# #????????????????????????? | | #?###??## ##?#?##########????????????????????????? | | ######??# #? ?? ?????????????????????????????????? | | #### #? ????????????????????????????????????? | | / #???? ??? ?#???????????????????????????? | | "" #### # ? ?????????????????????????????????? | | """ """# #?#??+?????????????????????????????????? | | """ T"# ? ? ????????????????????????????????? | | """ """# ?? ?????? ??????????????????????????? | | "" #### ?? ????#???????????????????????????? | | ##?# ????????????????????????????????????? | | ######### ?? ?#??????????????????????????????? | | ?##???##? ? ? ###????????????????????????????? | | ?#####??# ? ???????????????????????????? | +----------------------------------------------------+ Best States ------------- Heat Dissipation 28 Energy Generation 10 Energy Capacity 250 Matter Stores 280 Matter Capacity 300 Sight Range 16 Terrain Scan Range 16 Terrain Scan Density 10 Propulsion Shielding 33 Evasion (%) 40 Recoil Reduction 2 Item Schematics ----------------- None Robot Schematics ------------------ None Fabricated ------------ Nothing Repaired ---------- Nothing Studied --------- None Alien Tech Used ----------------- None Achievements -------------- There's More Where That Came From Challenges ------------ None Game ------ Seed TerrabombTiamatProcessor Manual? 0 Play Time 00:15:55 Cumulative 15.3 hours Start 2025.11.15 @ 13:24:37 End 2025.11.15 @ 13:38:37 Sessions 1 Manual Loads 0 Difficulty Rogue Special Mode None Game No. 21 Rogue 13 Adventurer 8 Explorer 0 Win Type - Total 0 Types 0/0/0/0/0/0/0/0/0/0 Lore% 8 Gallery% 15 Achievement% 9 Wizard Run 0 Options --------- Layout 1 ASCII 0 Keyboard 0 Movement Mouse Keybinds 0 Fullscreen 1 Font 48/Smallcaps Map View 50x35 Zoom Use 0% Tactical HUD 0 Map Filters NONE Filters NONE Steam 1 RUN: 9414b51b-249f-4252-bcf3-bb48980d63d0